Workbook

Sheet Feuil1
A2: 2017-08-03T00:10:00 | B2: 11 | C2: =MINUTE(A2) -> 10 | D2: 64
A3: 2017-08-03T00:20:00 | B3: 11 | C3: 20
A4: 2017-08-03T00:30:00 | B4: 10 | C4: 30
A5: 2017-08-03T00:40:00 | B5: 11 | C5: 40
A6: 2017-08-03T00:50:00 | B6: 12 | C6: 50
A7: 2017-08-03T01:00:01 | B7: 10 | C7: 0 | D7: =SUM(B2:B7) -> 65
A8: 2017-08-03T01:10:00 | B8: 10 | C8: 10
A9: 2017-08-03T01:20:00 | B9: 11 | C9: 20
A10: 2017-08-03T01:30:00 | B10: 10 | C10: 30
A11: 2017-08-03T01:40:00 | B11: 11 | C11: 40
A12: 2017-08-03T01:50:00 | B12: 10 | C12: 50
A13: 2017-08-03T02:00:01 | B13: 10 | C13: 0 | D13: =SUM(B8:B13) -> 62
A14: 2017-08-03T02:10:00 | B14: 12 | C14: 10
A15: 2017-08-03T02:20:00 | B15: 9 | C15: 20
A16: 2017-08-03T02:30:00 | B16: 10 | C16: 30
A17: 2017-08-03T02:40:00 | B17: 10 | C17: 40
A18: 2017-08-03T02:50:00 | B18: 10 | C18: 50
A19: 2017-08-03T03:00:00 | B19: 11 | C19: 0 | D19: =SUM(B14:B19) -> 62
A20: 2017-08-03T03:10:00 | B20: 11 | C20: 10
A21: 2017-08-03T03:20:00 | B21: 10 | C21: 20
A22: 2017-08-03T03:30:00 | B22: 10 | C22: 30
A23: 2017-08-03T03:40:00 | B23: 11 | C23: 40
A24: 2017-08-03T03:50:00 | B24: 10 | C24: 50
A25: 2017-08-03T04:00:00 | B25: 10 | C25: 0 | D25: =SUM(B20:B25) -> 62
A26: 2017-08-03T04:10:00 | B26: 10 | C26: 10
A27: 2017-08-03T04:20:00 | B27: 10 | C27: 20
A28: 2017-08-03T04:30:00 | B28: 10 | C28: 30
A29: 2017-08-03T04:40:00 | B29: 11 | C29: 40
A30: 2017-08-03T04:50:00 | B30: 9 | C30: 50
A31: 2017-08-03T05:00:00 | B31: 9 | C31: 0 | D31: =SUM(B26:B31) -> 59
A32: 2017-08-03T05:10:00 | B32: 10 | C32: 10
A33: 2017-08-03T05:20:00 | B33: 11 | C33: 20
A34: 2017-08-03T05:30:00 | B34: 10 | C34: 30
A35: 2017-08-03T05:40:00 | B35: 12 | C35: 40
A36: 2017-08-03T05:50:00 | B36: 10 | C36: 50
A37: 2017-08-03T06:00:01 | B37: 13 | C37: 0 | D37: =SUM(B32:B37) -> 66
A38: 2017-08-03T06:10:00 | B38: 14 | C38: 10
A39: 2017-08-03T06:20:00 | B39: 15 | C39: 20
A40: 2017-08-03T06:30:00 | B40: 17 | C40: 30
A41: 2017-08-03T06:40:00 | B41: 16 | C41: 40
A42: 2017-08-03T06:50:00 | B42: 14 | C42: 50
A43: 2017-08-03T07:00:00 | B43: 14 | C43: 0 | D43: =SUM(B38:B43) -> 90
A44: 2017-08-03T07:10:00 | B44: 14 | C44: 10
A45: 2017-08-03T07:20:00 | B45: 14 | C45: 20
A46: 2017-08-03T07:30:00 | B46: 17 | C46: 30
A47: 2017-08-03T07:40:00 | B47: 15 | C47: 40
A48: 2017-08-03T07:50:00 | B48: 15 | C48: 50
A49: 2017-08-03T08:00:00 | B49: 15 | C49: 0 | D49: =SUM(B44:B49) -> 90
A50: 2017-08-03T08:10:00 | B50: 15 | C50: 10
A51: 2017-08-03T08:20:00 | B51: 16 | C51: 20
A52: 2017-08-03T08:30:00 | B52: 15 | C52: 30
A53: 2017-08-03T08:40:00 | B53: 16 | C53: 40
A54: 2017-08-03T08:50:00 | B54: 16 | C54: 50
A55: 2017-08-03T09:00:00 | B55: 18 | C55: =MINUTE(A55) -> 0 | D55: =SUM(B50:B55) -> 96
A56: 2017-08-03T09:10:00 | B56: 16 | C56: 10
A57: 2017-08-03T09:20:00 | B57: 16 | C57: 20
A58: 2017-08-03T09:30:00 | B58: 16 | C58: 30
A59: 2017-08-03T09:40:00 | B59: 15 | C59: 40
A60: 2017-08-03T09:50:00 | B60: 16 | C60: 50
A61: 2017-08-03T10:00:00 | B61: 15 | C61: 0 | D61: =SUM(B56:B61) -> 94
A62: 2017-08-03T10:10:00 | B62: 15 | C62: 10
A63: 2017-08-03T10:20:00 | B63: 16 | C63: 20
A64: 2017-08-03T10:30:00 | B64: 17 | C64: 30
A65: 2017-08-03T10:40:00 | B65: 16 | C65: 40
A66: 2017-08-03T10:50:00 | B66: 17 | C66: 50
A67: 2017-08-03T11:00:01 | B67: 17 | C67: 0 | D67: =SUM(B62:B67) -> 98
A68: 2017-08-03T11:10:00 | B68: 18 | C68: 10
A69: 2017-08-03T11:20:00 | B69: 18 | C69: 20
A70: 2017-08-03T11:30:00 | B70: 19 | C70: 30
A71: 2017-08-03T11:40:00 | B71: 19 | C71: 40
A72: 2017-08-03T11:50:00 | B72: 18 | C72: 50
A73: 2017-08-03T12:00:01 | B73: 19 | C73: 0 | D73: =SUM(B68:B73) -> 111
A74: 2017-08-03T12:10:00 | B74: 18 | C74: 10
A75: 2017-08-03T12:20:00 | B75: 18 | C75: 20
A76: 2017-08-03T12:30:00 | B76: 18 | C76: 30
A77: 2017-08-03T12:40:00 | B77: 16 | C77: 40
A78: 2017-08-03T12:50:00 | B78: 18 | C78: 50
A79: 2017-08-03T13:00:01 | B79: 17 | C79: 0 | D79: =SUM(B74:B79) -> 105
A80: 2017-08-03T13:10:00 | B80: 16 | C80: 10
A81: 2017-08-03T13:20:00 | B81: 16 | C81: 20
A82: 2017-08-03T13:30:00 | B82: 17 | C82: 30
A83: 2017-08-03T13:40:00 | B83: 16 | C83: 40
A84: 2017-08-03T13:50:00 | B84: 16 | C84: 50
A85: 2017-08-03T14:00:00 | B85: 16 | C85: 0 | D85: =SUM(B80:B85) -> 97
A86: 2017-08-03T14:10:00 | B86: 16 | C86: 10
A87: 2017-08-03T14:20:00 | B87: 17 | C87: 20
A88: 2017-08-03T14:30:00 | B88: 16 | C88: 30
A89: 2017-08-03T14:40:00 | B89: 15 | C89: 40
A90: 2017-08-03T14:50:00 | B90: 17 | C90: 50
A91: 2017-08-03T15:00:00 | B91: 16 | C91: 0 | D91: =SUM(B86:B91) -> 97
A92: 2017-08-03T15:10:00 | B92: 16 | C92: 10
A93: 2017-08-03T15:20:00 | B93: 14 | C93: 20
A94: 2017-08-03T15:30:00 | B94: 18 | C94: 30
A95: 2017-08-03T15:40:00 | B95: 16 | C95: 40
A96: 2017-08-03T15:50:00 | B96: 16 | C96: 50
A97: 2017-08-03T16:00:00 | B97: 16 | C97: 0 | D97: =SUM(B92:B97) -> 96
A98: 2017-08-03T16:10:00 | B98: 17 | C98: 10
A99: 2017-08-03T16:20:00 | B99: 17 | C99: 20
A100: 2017-08-03T16:30:00 | B100: 16 | C100: 30
A101: 2017-08-03T16:40:00 | B101: 16 | C101: 40
A102: 2017-08-03T16:50:00 | B102: 17 | C102: 50
A103: 2017-08-03T17:00:00 | B103: 17 | C103: 0 | D103: =SUM(B98:B103) -> 100
A104: 2017-08-03T17:10:00 | B104: 16 | C104: 10
A105: 2017-08-03T17:20:00 | B105: 15 | C105: 20
A106: 2017-08-03T17:30:00 | B106: 16 | C106: 30
A107: 2017-08-03T17:40:00 | B107: 16 | C107: 40
A108: 2017-08-03T17:50:00 | B108: 17 | C108: 50
A109: 2017-08-03T18:00:01 | B109: 15 | C109: 0 | D109: =SUM(B104:B109) -> 95
A110: 2017-08-03T18:10:00 | B110: 14 | C110: 10
A111: 2017-08-03T18:20:00 | B111: 14 | C111: 20
A112: 2017-08-03T18:30:00 | B112: 13 | C112: 30
A113: 2017-08-03T18:40:00 | B113: 12 | C113: 40
A114: 2017-08-03T18:50:00 | B114: 14 | C114: 50
A115: 2017-08-03T19:00:01 | B115: 11 | C115: 0 | D115: =SUM(B110:B115) -> 78
A116: 2017-08-03T19:10:00 | B116: 11 | C116: 10
A117: 2017-08-03T19:20:00 | B117: 10 | C117: 20
A118: 2017-08-03T19:30:00 | B118: 11 | C118: 30
A119: 2017-08-03T19:40:00 | B119: 10 | C119: =MINUTE(A119) -> 40
A120: 2017-08-03T19:50:00 | B120: 11 | C120: 50
A121: 2017-08-03T20:00:01 | B121: 10 | C121: 0 | D121: =SUM(B116:B121) -> 63
A122: 2017-08-03T20:10:00 | B122: 11 | C122: 10
A123: 2017-08-03T20:20:00 | B123: 11 | C123: 20
A124: 2017-08-03T20:30:00 | B124: 10 | C124: 30
A125: 2017-08-03T20:40:00 | B125: 11 | C125: 40
A126: 2017-08-03T20:50:00 | B126: 9 | C126: 50
A127: 2017-08-03T21:00:00 | B127: 10 | C127: 0 | D127: =SUM(B122:B127) -> 62
A128: 2017-08-03T21:10:00 | B128: 10 | C128: 10
A129: 2017-08-03T21:20:00 | B129: 10 | C129: 20
A130: 2017-08-03T21:30:00 | B130: 10 | C130: 30
A131: 2017-08-03T21:40:00 | B131: 11 | C131: 40
A132: 2017-08-03T21:50:00 | B132: 11 | C132: 50
A133: 2017-08-03T22:00:00 | B133: 13 | C133: 0 | D133: =SUM(B128:B133) -> 65
A134: 2017-08-03T22:10:00 | B134: 12 | C134: 10
A135: 2017-08-03T22:20:00 | B135: 12 | C135: 20
A136: 2017-08-03T22:30:00 | B136: 10 | C136: 30
A137: 2017-08-03T22:40:00 | B137: 13 | C137: 40
A138: 2017-08-03T22:50:00 | B138: 11 | C138: 50
A139: 2017-08-03T23:00:00 | B139: 11 | C139: 0 | D139: =SUM(B134:B139) -> 69
A140: 2017-08-03T23:10:00 | B140: 11 | C140: 10
A141: 2017-08-03T23:20:00 | B141: 11 | C141: 20
A142: 2017-08-03T23:30:00 | B142: 10 | C142: 30
A143: 2017-08-03T23:40:00 | B143: 11 | C143: 40
A144: 2017-08-03T23:50:00 | B144: 11 | C144: 50
A145: 2017-08-04 | B145: 10 | C145: 0 | D145: =SUM(B140:B145) -> 64
A146: 2017-08-04T00:10:00 | B146: 11 | C146: 10
A147: 2017-08-04T00:20:00 | B147: 10 | C147: 20
A148: 2017-08-04T00:30:00 | B148: 10 | C148: 30
A149: 2017-08-04T00:40:00 | B149: 9 | C149: 40
A150: 2017-08-04T00:50:00 | B150: 11 | C150: 50
A151: 2017-08-04T01:00:01 | B151: 9 | C151: 0 | D151: =SUM(B146:B151) -> 60
A152: 2017-08-04T01:10:00 | B152: 9 | C152: 10
A153: 2017-08-04T01:20:00 | B153: 10 | C153: 20
A154: 2017-08-04T01:30:00 | B154: 10 | C154: 30
A155: 2017-08-04T01:40:00 | B155: 9 | C155: 40
A156: 2017-08-04T01:50:00 | B156: 10 | C156: 50
A157: 2017-08-04T02:00:00 | B157: 10 | C157: 0 | D157: =SUM(B152:B157) -> 58
A158: 2017-08-04T02:10:00 | B158: 10 | C158: 10
A159: 2017-08-04T02:20:00 | B159: 10 | C159: 20
A160: 2017-08-04T02:30:00 | B160: 9 | C160: 30
A161: 2017-08-04T02:40:00 | B161: 11 | C161: 40
A162: 2017-08-04T02:50:00 | B162: 9 | C162: 50
A163: 2017-08-04T03:00:00 | B163: 11 | C163: 0 | D163: =SUM(B158:B163) -> 60
A164: 2017-08-04T03:10:00 | B164: 10 | C164: 10
A165: 2017-08-04T03:20:00 | B165: 10 | C165: 20
A166: 2017-08-04T03:30:00 | B166: 10 | C166: 30
A167: 2017-08-04T03:40:00 | B167: 10 | C167: 40
A168: 2017-08-04T03:50:00 | B168: 9 | C168: 50
A169: 2017-08-04T04:00:00 | B169: 10 | C169: 0 | D169: =SUM(B164:B169) -> 59
A170: 2017-08-04T04:10:00 | B170: 10 | C170: 10
A171: 2017-08-04T04:20:00 | B171: 10 | C171: 20
A172: 2017-08-04T04:30:00 | B172: 9 | C172: 30
A173: 2017-08-04T04:40:00 | B173: 11 | C173: 40
A174: 2017-08-04T04:50:00 | B174: 10 | C174: 50
A175: 2017-08-04T05:00:00 | B175: 10 | C175: 0 | D175: =SUM(B170:B175) -> 60
A176: 2017-08-04T05:10:00 | B176: 10 | C176: 10
A177: 2017-08-04T05:20:00 | B177: 14 | C177: 20
A178: 2017-08-04T05:30:00 | B178: 14 | C178: 30
A179: 2017-08-04T05:40:00 | B179: 14 | C179: 40
A180: 2017-08-04T05:50:00 | B180: 13 | C180: 50
A181: 2017-08-04T06:00:00 | B181: 14 | C181: 0 | D181: =SUM(B176:B181) -> 79
A182: 2017-08-04T06:10:00 | B182: 13 | C182: 10
A183: 2017-08-04T06:20:00 | B183: 17 | C183: =MINUTE(A183) -> 20
A184: 2017-08-04T06:30:00 | B184: 16 | C184: 30
A185: 2017-08-04T06:40:00 | B185: 17 | C185: 40
A186: 2017-08-04T06:50:00 | B186: 14 | C186: 50
A187: 2017-08-04T07:00:01 | B187: 13 | C187: 0 | D187: =SUM(B182:B187) -> 90
A188: 2017-08-04T07:10:00 | B188: 12 | C188: 10
A189: 2017-08-04T07:20:00 | B189: 17 | C189: 20
A190: 2017-08-04T07:30:00 | B190: 16 | C190: 30
A191: 2017-08-04T07:40:00 | B191: 15 | C191: 40
A192: 2017-08-04T07:50:00 | B192: 14 | C192: 50
A193: 2017-08-04T08:00:01 | B193: 16 | C193: 0 | D193: =SUM(B188:B193) -> 90
A194: 2017-08-04T08:10:00 | B194: 15 | C194: 10
A195: 2017-08-04T08:20:00 | B195: 15 | C195: 20
A196: 2017-08-04T08:30:00 | B196: 15 | C196: 30
A197: 2017-08-04T08:40:00 | B197: 15 | C197: 40
A198: 2017-08-04T08:50:00 | B198: 16 | C198: 50
A199: 2017-08-04T09:00:00 | B199: 15 | C199: 0 | D199: =SUM(B194:B199) -> 91
A200: 2017-08-04T09:10:00 | B200: 14 | C200: 10
A201: 2017-08-04T09:20:00 | B201: 17 | C201: 20
... 17802 more rows

Sheet 277
A1: 2017-08-02T12:01:00 | B1: 6 | D1: 1
A2: 2017-08-02T12:02:00 | B2: 5 | D2: 2
A3: 2017-08-02T12:03:00 | B3: 6 | D3: 3
A4: 2017-08-02T12:04:00 | B4: 5 | D4: 4
A5: 2017-08-02T12:05:00 | B5: 6 | D5: 5
A6: 2017-08-02T12:06:00 | B6: 5 | D6: 6
A7: 2017-08-02T12:07:00 | B7: 5 | D7: 7
A8: 2017-08-02T12:08:00 | B8: 6 | D8: 8
A9: 2017-08-02T12:09:00 | B9: 5 | D9: 9
A10: 2017-08-02T12:10:00 | B10: 6 | D10: 10
A11: 2017-08-02T12:11:00 | B11: 5 | D11: 11
A12: 2017-08-02T12:12:00 | B12: 5 | D12: 12
A13: 2017-08-02T12:13:00 | B13: 5 | D13: 13
A14: 2017-08-02T12:14:00 | B14: 6 | D14: 14
A15: 2017-08-02T12:15:00 | B15: 5 | D15: 15
A16: 2017-08-02T12:16:00 | B16: 5 | D16: 16
A17: 2017-08-02T12:17:00 | B17: 5 | D17: 17
A18: 2017-08-02T12:18:00 | B18: 5 | D18: 18
A19: 2017-08-02T12:19:00 | B19: 5 | D19: 19
A20: 2017-08-02T12:20:00 | B20: 6 | D20: 20
A21: 2017-08-02T12:21:00 | B21: 5 | D21: 21
A22: 2017-08-02T12:22:00 | B22: 5 | D22: 22
A23: 2017-08-02T12:23:00 | B23: 5 | D23: 23
A24: 2017-08-02T12:24:00 | B24: 5 | D24: 24
A25: 2017-08-02T12:25:00 | B25: 6 | D25: 25
A26: 2017-08-02T12:26:00 | B26: 5 | D26: 26
A27: 2017-08-02T12:27:00 | B27: 5 | D27: 27
A28: 2017-08-02T12:28:00 | B28: 5 | D28: 28
A29: 2017-08-02T12:29:00 | B29: 6 | D29: 29
A30: 2017-08-02T12:30:00 | B30: 5 | D30: 30
A31: 2017-08-02T12:31:00 | B31: 5 | D31: 31
A32: 2017-08-02T12:32:00 | B32: 5 | D32: 32
A33: 2017-08-02T12:33:00 | B33: 5 | D33: 33
A34: 2017-08-02T12:34:00 | B34: 5 | D34: 34
A35: 2017-08-02T12:35:00 | B35: 5 | D35: 35
A36: 2017-08-02T12:36:00 | B36: 6 | D36: 36
A37: 2017-08-02T12:37:00 | B37: 5 | D37: 37
A38: 2017-08-02T12:38:00 | B38: 5 | D38: 38
A39: 2017-08-02T12:39:00 | B39: 5 | D39: 39
A40: 2017-08-02T12:40:00 | B40: 5 | D40: 40
A41: 2017-08-02T12:41:00 | B41: 5 | D41: 41
A42: 2017-08-02T12:42:00 | B42: 5 | D42: 42
A43: 2017-08-02T12:43:00 | B43: 5 | D43: 43
A44: 2017-08-02T12:44:00 | B44: 5 | D44: 44
A45: 2017-08-02T12:45:00 | B45: 5 | D45: 45
A46: 2017-08-02T12:46:00 | B46: 5 | D46: 46
A47: 2017-08-02T12:47:00 | B47: 6 | D47: 47
A48: 2017-08-02T12:48:00 | B48: 5 | D48: 48
A49: 2017-08-02T12:49:00 | B49: 5 | D49: 49
A50: 2017-08-02T12:50:00 | B50: 5 | D50: 50
A51: 2017-08-02T12:51:00 | B51: 5 | D51: 51
A52: 2017-08-02T12:52:00 | B52: 5 | D52: 52
A53: 2017-08-02T12:53:00 | B53: 5 | D53: 53
A54: 2017-08-02T12:54:00 | B54: 5 | D54: 54
A55: 2017-08-02T12:55:00 | B55: 6 | D55: 55
A56: 2017-08-02T12:56:00 | B56: 5 | D56: 56
A57: 2017-08-02T12:57:00 | B57: 5 | D57: 57
A58: 2017-08-02T12:58:00 | B58: 5 | D58: 58
A59: 2017-08-02T12:59:00 | B59: 5 | D59: 59
A60: 2017-08-02T13:00:00 | B60: 5 | C60: ici il faut faire la somme des 60 cellules "B" précédentes | D60: 0
A61: 2017-08-02T13:01:00 | B61: 5 | D61: 1
A62: 2017-08-02T13:02:00 | B62: 5 | D62: 2
A63: 2017-08-02T13:03:00 | B63: 5 | D63: 3
A64: 2017-08-02T13:04:00 | B64: 5 | D64: 4
A65: 2017-08-02T13:05:00 | B65: 5 | D65: 5
A66: 2017-08-02T13:06:00 | B66: 5 | D66: 6
A67: 2017-08-02T13:07:00 | B67: 5 | D67: 7
A68: 2017-08-02T13:08:00 | B68: 5 | D68: 8
A69: 2017-08-02T13:09:00 | B69: 5 | D69: 9
A70: 2017-08-02T13:10:00 | B70: 5 | D70: 10
A71: 2017-08-02T13:11:00 | B71: 5 | D71: 11
A72: 2017-08-02T13:12:00 | B72: 6 | D72: 12
A73: 2017-08-02T13:13:00 | B73: 5 | D73: 13
A74: 2017-08-02T13:14:00 | B74: 5 | D74: 14
A75: 2017-08-02T13:15:00 | B75: 5 | D75: 15
A76: 2017-08-02T13:16:00 | B76: 5 | D76: 16
A77: 2017-08-02T13:17:00 | B77: 5 | D77: 17
A78: 2017-08-02T13:18:00 | B78: 5 | D78: 18
A79: 2017-08-02T13:19:00 | B79: 5 | D79: 19
A80: 2017-08-02T13:20:00 | B80: 5 | D80: 20
A81: 2017-08-02T13:21:00 | B81: 5 | D81: 21
A82: 2017-08-02T13:22:00 | B82: 5 | D82: 22
A83: 2017-08-02T13:23:00 | B83: 5 | D83: 23
A84: 2017-08-02T13:24:00 | B84: 5 | D84: 24
A85: 2017-08-02T13:25:00 | B85: 5 | D85: 25
A86: 2017-08-02T13:26:00 | B86: 5 | D86: 26
A87: 2017-08-02T13:27:00 | B87: 6 | D87: 27
A88: 2017-08-02T13:28:00 | B88: 5 | D88: 28
A89: 2017-08-02T13:29:00 | B89: 5 | D89: 29
A90: 2017-08-02T13:30:00 | B90: 5 | D90: 30
A91: 2017-08-02T13:31:00 | B91: 5 | D91: 31
A92: 2017-08-02T13:32:00 | B92: 5 | D92: 32
A93: 2017-08-02T13:33:00 | B93: 5 | D93: 33
A94: 2017-08-02T13:34:00 | B94: 5 | D94: 34
A95: 2017-08-02T13:35:00 | B95: 6 | D95: 35
A96: 2017-08-02T13:36:00 | B96: 5 | D96: 36
A97: 2017-08-02T13:37:00 | B97: 5 | D97: 37
A98: 2017-08-02T13:38:00 | B98: 5 | D98: 38
A99: 2017-08-02T13:39:00 | B99: 5 | D99: 39
A100: 2017-08-02T13:40:00 | B100: 5 | D100: 40
A101: 2017-08-02T13:41:00 | B101: 5 | D101: 41
A102: 2017-08-02T13:42:00 | B102: 5 | D102: 42
A103: 2017-08-02T13:43:00 | B103: 6 | D103: 43
A104: 2017-08-02T13:44:00 | B104: 4 | D104: 44
A105: 2017-08-02T13:45:00 | B105: 5 | D105: 45
A106: 2017-08-02T13:46:00 | B106: 6 | D106: 46
A107: 2017-08-02T13:47:00 | B107: 5 | D107: 47
A108: 2017-08-02T13:48:00 | B108: 5 | D108: 48
A109: 2017-08-02T13:49:00 | B109: 5 | D109: 49
A110: 2017-08-02T13:50:00 | B110: 5 | D110: 50
A111: 2017-08-02T13:51:00 | B111: 5 | D111: 51
A112: 2017-08-02T13:52:00 | B112: 5 | D112: 52
A113: 2017-08-02T13:53:00 | B113: 5 | D113: 53
A114: 2017-08-02T13:54:00 | B114: 5 | D114: 54
A115: 2017-08-02T13:55:00 | B115: 5 | D115: 55
A116: 2017-08-02T13:56:00 | B116: 5 | D116: 56
A117: 2017-08-02T13:57:00 | B117: 6 | D117: 57
A118: 2017-08-02T13:58:00 | B118: 5 | D118: 58
A119: 2017-08-02T13:59:00 | B119: 5 | D119: 59
A120: 2017-08-02T14:00:01 | B120: 5 | C120: ici aussi pareil | D120: 0
A121: 2017-08-02T14:01:00 | B121: 5 | D121: 1
A122: 2017-08-02T14:02:00 | B122: 5 | D122: 2
A123: 2017-08-02T14:03:00 | B123: 5 | D123: 3
A124: 2017-08-02T14:04:00 | B124: 6 | D124: 4
A125: 2017-08-02T14:05:00 | B125: 4 | D125: 5
A126: 2017-08-02T14:06:00 | B126: 6 | D126: 6
A127: 2017-08-02T14:07:00 | B127: 5 | D127: 7
A128: 2017-08-02T14:08:00 | B128: 5 | D128: 8
A129: 2017-08-02T14:09:00 | B129: 5 | D129: 9
A130: 2017-08-02T14:10:00 | B130: 5 | D130: 10
A131: 2017-08-02T14:11:00 | B131: 5 | D131: 11
A132: 2017-08-02T14:12:00 | B132: 5 | D132: 12
A133: 2017-08-02T14:13:00 | B133: 5 | D133: 13
A134: 2017-08-02T14:14:00 | B134: 6 | D134: 14
A135: 2017-08-02T14:15:00 | B135: 5 | D135: 15
A136: 2017-08-02T14:16:00 | B136: 5 | D136: 16
A137: 2017-08-02T14:17:00 | B137: 5 | D137: 17
A138: 2017-08-02T14:18:00 | B138: 5 | D138: 18
A139: 2017-08-02T14:19:00 | B139: 5 | D139: 19
A140: 2017-08-02T14:20:00 | B140: 5 | D140: 20
A141: 2017-08-02T14:21:00 | B141: 6 | D141: 21
A142: 2017-08-02T14:22:00 | B142: 5 | D142: 22
A143: 2017-08-02T14:23:00 | B143: 5 | D143: 23
A144: 2017-08-02T14:24:00 | B144: 5 | D144: 24
A145: 2017-08-02T14:25:00 | B145: 5 | D145: 25
A146: 2017-08-02T14:26:00 | B146: 5 | D146: 26
A147: 2017-08-02T14:27:00 | B147: 5 | D147: 27
A148: 2017-08-02T14:28:00 | B148: 5 | D148: 28
A149: 2017-08-02T14:29:00 | B149: 6 | D149: 29
A150: 2017-08-02T14:30:00 | B150: 5 | D150: 30
A151: 2017-08-02T14:31:00 | B151: 5 | D151: 31
A152: 2017-08-02T14:32:00 | B152: 5 | D152: 32
A153: 2017-08-02T14:33:00 | B153: 5 | D153: 33
A154: 2017-08-02T14:34:00 | B154: 5 | D154: 34
A155: 2017-08-02T14:35:00 | B155: 5 | D155: 35
A156: 2017-08-02T14:36:00 | B156: 5 | D156: 36
A157: 2017-08-02T14:37:00 | B157: 5 | D157: 37
A158: 2017-08-02T14:38:00 | B158: 5 | D158: 38
A159: 2017-08-02T14:39:00 | B159: 6 | D159: 39
A160: 2017-08-02T14:40:00 | B160: 5 | D160: 40
A161: 2017-08-02T14:41:00 | B161: 5 | D161: 41
A162: 2017-08-02T14:42:00 | B162: 5 | D162: 42
A163: 2017-08-02T14:43:00 | B163: 5 | D163: 43
A164: 2017-08-02T14:44:00 | B164: 5 | D164: 44
A165: 2017-08-02T14:45:00 | B165: 5 | D165: 45
A166: 2017-08-02T14:46:00 | B166: 5 | D166: 46
A167: 2017-08-02T14:47:00 | B167: 5 | D167: 47
A168: 2017-08-02T14:48:00 | B168: 6 | D168: 48
A169: 2017-08-02T14:49:00 | B169: 5 | D169: 49
A170: 2017-08-02T14:50:00 | B170: 5 | D170: 50
A171: 2017-08-02T14:51:00 | B171: 5 | D171: 51
A172: 2017-08-02T14:52:00 | B172: 5 | D172: 52
A173: 2017-08-02T14:53:00 | B173: 5 | D173: 53
A174: 2017-08-02T14:54:00 | B174: 5 | D174: 54
A175: 2017-08-02T14:55:00 | B175: 5 | D175: 55
A176: 2017-08-02T14:56:00 | B176: 5 | D176: 56
A177: 2017-08-02T14:57:00 | B177: 5 | D177: 57
A178: 2017-08-02T14:58:00 | B178: 5 | D178: 58
A179: 2017-08-02T14:59:00 | B179: 5 | D179: 59
A180: 2017-08-02T15:00:01 | B180: 6 | D180: 0
A181: 2017-08-02T15:01:00 | B181: 5 | D181: 1
A182: 2017-08-02T15:02:00 | B182: 5 | D182: 2
A183: 2017-08-02T15:03:00 | B183: 5 | D183: 3
A184: 2017-08-02T15:04:00 | B184: 5 | D184: 4
A185: 2017-08-02T15:05:00 | B185: 5 | D185: 5
A186: 2017-08-02T15:06:00 | B186: 5 | D186: 6
A187: 2017-08-02T15:07:00 | B187: 5 | D187: 7
A188: 2017-08-02T15:08:00 | B188: 5 | D188: 8
A189: 2017-08-02T15:09:00 | B189: 5 | D189: 9
A190: 2017-08-02T15:10:00 | B190: 5 | D190: 10
A191: 2017-08-02T15:11:00 | B191: 5 | D191: 11
A192: 2017-08-02T15:12:00 | B192: 5 | D192: 12
A193: 2017-08-02T15:13:00 | B193: 5 | D193: 13
A194: 2017-08-02T15:14:00 | B194: 6 | D194: 14
A195: 2017-08-02T15:15:00 | B195: 5 | D195: 15
A196: 2017-08-02T15:16:00 | B196: 5 | D196: 16
A197: 2017-08-02T15:17:00 | B197: 5 | D197: 17
A198: 2017-08-02T15:18:00 | B198: 5 | D198: 18
A199: 2017-08-02T15:19:00 | B199: 5 | D199: 19
A200: 2017-08-02T15:20:00 | B200: 5 | D200: 20
... 1959 more rows

Sheet Feuil3
A2: 2017-08-06T02:35:00 | B2: 3 | E2: 35
A3: 2017-08-06T02:36:00 | B3: 3 | E3: 36
A4: 2017-08-06T02:37:00 | B4: 4 | E4: 37
A5: 2017-08-06T02:38:00 | B5: 3 | E5: 38
A6: 2017-08-06T02:39:00 | B6: 3 | E6: 39
A7: 2017-08-06T02:40:00 | B7: 3 | E7: 40
A8: 2017-08-06T02:41:00 | B8: 3 | E8: 41
A9: 2017-08-06T02:42:00 | B9: 3 | E9: 42
A10: 2017-08-06T02:43:00 | B10: 3 | E10: 43
A11: 2017-08-06T02:44:00 | B11: 3 | E11: 44
A12: 2017-08-06T02:45:00 | B12: 3 | E12: 45
A13: 2017-08-06T02:46:00 | B13: 3 | E13: 46
A14: 2017-08-06T02:47:00 | B14: 3 | E14: 47
A15: 2017-08-06T02:48:00 | B15: 3 | E15: 48
A16: 2017-08-06T02:49:00 | B16: 3 | E16: 49
A17: 2017-08-06T02:50:00 | B17: 3 | E17: 50
A18: 2017-08-06T02:51:00 | B18: 3 | E18: 51
A19: 2017-08-06T02:52:00 | B19: 3 | E19: 52
A20: 2017-08-06T02:53:00 | B20: 3 | E20: 53
A21: 2017-08-06T02:54:00 | B21: 3 | E21: 54
A22: 2017-08-06T02:55:00 | B22: 3 | E22: 55
A23: 2017-08-06T02:56:00 | B23: 3 | E23: 56
A24: 2017-08-06T02:57:00 | B24: 4 | E24: 57
A25: 2017-08-06T02:58:00 | B25: 3 | E25: 58
A26: 2017-08-06T02:59:00 | B26: 3 | E26: 59
A27: 2017-08-06T03:00:00 | B27: 3 | C27: =SUM(#REF!) ->  | E27: 0
A28: 2017-08-06T03:01:00 | B28: 3 | E28: 1
A29: 2017-08-06T03:02:00 | B29: 3 | E29: 2
A30: 2017-08-06T03:03:00 | B30: 3 | E30: 3
A31: 2017-08-06T03:04:00 | B31: 3 | E31: 4
A32: 2017-08-06T03:05:00 | B32: 3 | E32: 5
A33: 2017-08-06T03:06:00 | B33: 3 | E33: 6
A34: 2017-08-06T03:07:00 | B34: 3 | E34: 7
A35: 2017-08-06T03:08:00 | B35: 3 | E35: 8
A36: 2017-08-06T03:09:00 | B36: 3 | E36: 9
A37: 2017-08-06T03:10:00 | B37: 3 | E37: 10
A38: 2017-08-06T03:11:00 | B38: 3 | E38: 11
A39: 2017-08-06T03:12:00 | B39: 3 | E39: 12
A40: 2017-08-06T03:13:00 | B40: 3 | E40: 13
A41: 2017-08-06T03:14:00 | B41: 3 | E41: 14
A42: 2017-08-06T03:15:00 | B42: 3 | E42: 15
A43: 2017-08-06T03:16:00 | B43: 3 | E43: 16
A44: 2017-08-06T03:17:00 | B44: 3 | E44: 17
A45: 2017-08-06T03:18:00 | B45: 3 | E45: 18
A46: 2017-08-06T03:19:00 | B46: 3 | E46: 19
A47: 2017-08-06T03:20:00 | B47: 3 | E47: 20
A48: 2017-08-06T03:21:00 | B48: 3 | E48: 21
A49: 2017-08-06T03:22:00 | B49: 3 | E49: 22
A50: 2017-08-06T03:23:00 | B50: 3 | E50: 23
A51: 2017-08-06T03:24:00 | B51: 3 | E51: 24
A52: 2017-08-06T03:25:00 | B52: 3 | E52: 25
A53: 2017-08-06T03:26:00 | B53: 3 | E53: 26
A54: 2017-08-06T03:27:00 | B54: 3 | E54: 27
A55: 2017-08-06T03:28:00 | B55: 3 | E55: 28
A56: 2017-08-06T03:29:00 | B56: 3 | E56: 29
A57: 2017-08-06T03:30:00 | B57: 3 | E57: 30
A58: 2017-08-06T03:31:00 | B58: 3 | E58: 31
A59: 2017-08-06T03:32:00 | B59: 3 | E59: 32
A60: 2017-08-06T03:33:00 | B60: 3 | E60: 33
A61: 2017-08-06T03:34:00 | B61: 3 | E61: 34
A62: 2017-08-06T03:35:00 | B62: 3 | E62: 35
A63: 2017-08-06T03:36:00 | B63: 3 | E63: 36
A64: 2017-08-06T03:37:00 | B64: 3 | E64: 37
A65: 2017-08-06T03:38:00 | B65: 3 | E65: 38
A66: 2017-08-06T03:39:00 | B66: 3 | E66: 39
A67: 2017-08-06T03:40:00 | B67: 3 | E67: 40
A68: 2017-08-06T03:41:00 | B68: 3 | E68: 41
A69: 2017-08-06T03:42:00 | B69: 3 | E69: 42
A70: 2017-08-06T03:43:00 | B70: 3 | E70: 43
A71: 2017-08-06T03:44:00 | B71: 2 | E71: 44
A72: 2017-08-06T03:45:00 | B72: 3 | E72: 45
A73: 2017-08-06T03:46:00 | B73: 3 | E73: 46
A74: 2017-08-06T03:47:00 | B74: 3 | E74: 47
A75: 2017-08-06T03:48:00 | B75: 3 | E75: 48
A76: 2017-08-06T03:49:00 | B76: 3 | E76: 49
A77: 2017-08-06T03:50:00 | B77: 3 | E77: 50
A78: 2017-08-06T03:51:00 | B78: 3 | E78: 51
A79: 2017-08-06T03:52:00 | B79: 3 | E79: 52
A80: 2017-08-06T03:53:00 | B80: 3 | E80: 53
A81: 2017-08-06T03:54:00 | B81: 3 | E81: 54
A82: 2017-08-06T03:55:00 | B82: 3 | E82: 55
A83: 2017-08-06T03:56:00 | B83: 3 | E83: 56
A84: 2017-08-06T03:57:00 | B84: 2 | E84: 57
A85: 2017-08-06T03:58:00 | B85: 3 | E85: 58
A86: 2017-08-06T03:59:00 | B86: 3 | E86: 59
A87: 2017-08-06T04:00:00 | B87: 3 | C87: =SUM(B28:B87) -> 178 | E87: 0
A88: 2017-08-06T04:01:00 | B88: 3 | E88: 1
A89: 2017-08-06T04:02:00 | B89: 3 | E89: 2
A90: 2017-08-06T04:03:00 | B90: 3 | E90: 3
A91: 2017-08-06T04:04:00 | B91: 3 | E91: 4
A92: 2017-08-06T04:05:00 | B92: 3 | E92: 5
A93: 2017-08-06T04:06:00 | B93: 3 | E93: 6
A94: 2017-08-06T04:07:00 | B94: 3 | E94: 7
A95: 2017-08-06T04:08:00 | B95: 3 | E95: 8
A96: 2017-08-06T04:09:00 | B96: 3 | E96: 9
A97: 2017-08-06T04:10:00 | B97: 3 | E97: 10
A98: 2017-08-06T04:11:00 | B98: 3 | E98: 11
A99: 2017-08-06T04:12:00 | B99: 3 | E99: 12
A100: 2017-08-06T04:13:00 | B100: 3 | E100: 13
A101: 2017-08-06T04:14:00 | B101: 3 | E101: 14
A102: 2017-08-06T04:15:00 | B102: 3 | E102: 15
A103: 2017-08-06T04:16:00 | B103: 3 | E103: 16
A104: 2017-08-06T04:17:00 | B104: 3 | E104: 17
A105: 2017-08-06T04:18:00 | B105: 3 | E105: 18
A106: 2017-08-06T04:19:00 | B106: 3 | E106: 19
A107: 2017-08-06T04:20:00 | B107: 3 | E107: 20
A108: 2017-08-06T04:21:00 | B108: 4 | E108: 21
A109: 2017-08-06T04:22:00 | B109: 3 | E109: 22
A110: 2017-08-06T04:23:00 | B110: 3 | E110: 23
A111: 2017-08-06T04:24:00 | B111: 3 | E111: 24
A112: 2017-08-06T04:25:00 | B112: 3 | E112: 25
A113: 2017-08-06T04:26:00 | B113: 3 | E113: 26
A114: 2017-08-06T04:27:00 | B114: 3 | E114: 27
A115: 2017-08-06T04:28:00 | B115: 3 | E115: 28
A116: 2017-08-06T04:29:00 | B116: 3 | E116: 29
A117: 2017-08-06T04:30:00 | B117: 3 | E117: 30
A118: 2017-08-06T04:31:00 | B118: 4 | E118: 31
A119: 2017-08-06T04:32:00 | B119: 3 | E119: 32
A120: 2017-08-06T04:33:00 | B120: 3 | E120: 33
A121: 2017-08-06T04:34:00 | B121: 3 | E121: 34
A122: 2017-08-06T04:35:00 | B122: 3 | E122: 35
A123: 2017-08-06T04:36:00 | B123: 3 | E123: 36
A124: 2017-08-06T04:37:00 | B124: 3 | E124: 37
A125: 2017-08-06T04:38:00 | B125: 3 | E125: 38
A126: 2017-08-06T04:39:00 | B126: 3 | E126: 39
A127: 2017-08-06T04:40:00 | B127: 3 | E127: 40
A128: 2017-08-06T04:41:00 | B128: 3 | E128: 41
A129: 2017-08-06T04:42:00 | B129: 3 | E129: 42
A130: 2017-08-06T04:43:00 | B130: 3 | E130: 43
A131: 2017-08-06T04:44:00 | B131: 3 | E131: 44
A132: 2017-08-06T04:45:00 | B132: 3 | E132: 45
A133: 2017-08-06T04:46:00 | B133: 3 | E133: 46
A134: 2017-08-06T04:47:00 | B134: 3 | E134: 47
A135: 2017-08-06T04:48:00 | B135: 3 | E135: 48
A136: 2017-08-06T04:49:00 | B136: 3 | E136: 49
A137: 2017-08-06T04:50:00 | B137: 3 | E137: 50
A138: 2017-08-06T04:51:00 | B138: 3 | E138: 51
A139: 2017-08-06T04:52:00 | B139: 3 | E139: 52
A140: 2017-08-06T04:53:00 | B140: 3 | E140: 53
A141: 2017-08-06T04:54:00 | B141: 3 | E141: 54
A142: 2017-08-06T04:55:00 | B142: 3 | E142: 55
A143: 2017-08-06T04:56:00 | B143: 3 | E143: 56
A144: 2017-08-06T04:57:00 | B144: 3 | E144: 57
A145: 2017-08-06T04:58:00 | B145: 3 | E145: 58
A146: 2017-08-06T04:59:00 | B146: 3 | E146: 59
A147: 2017-08-06T05:00:00 | B147: 3 | C147: =SUM(B88:B147) -> 182 | E147: 0
A148: 2017-08-06T05:01:00 | B148: 3 | E148: 1
A149: 2017-08-06T05:02:00 | B149: 3 | E149: 2
A150: 2017-08-06T05:03:00 | B150: 3 | E150: 3
A151: 2017-08-06T05:04:00 | B151: 3 | E151: 4
A152: 2017-08-06T05:05:00 | B152: 3 | E152: 5
A153: 2017-08-06T05:06:00 | B153: 3 | E153: 6
A154: 2017-08-06T05:07:00 | B154: 3 | E154: 7
A155: 2017-08-06T05:08:00 | B155: 3 | E155: 8
A156: 2017-08-06T05:09:00 | B156: 3 | E156: 9
A157: 2017-08-06T05:10:00 | B157: 3 | E157: 10
A158: 2017-08-06T05:11:00 | B158: 3 | E158: 11
A159: 2017-08-06T05:12:00 | B159: 2 | E159: 12
A160: 2017-08-06T05:13:00 | B160: 3 | E160: 13
A161: 2017-08-06T05:14:00 | B161: 3 | E161: 14
A162: 2017-08-06T05:15:00 | B162: 3 | E162: 15
A163: 2017-08-06T05:16:00 | B163: 3 | E163: 16
A164: 2017-08-06T05:17:00 | B164: 3 | E164: 17
A165: 2017-08-06T05:18:00 | B165: 3 | E165: 18
A166: 2017-08-06T05:19:00 | B166: 3 | E166: 19
A167: 2017-08-06T05:20:00 | B167: 3 | E167: 20
A168: 2017-08-06T05:21:00 | B168: 3 | E168: 21
A169: 2017-08-06T05:22:00 | B169: 3 | E169: 22
A170: 2017-08-06T05:23:00 | B170: 3 | E170: 23
A171: 2017-08-06T05:24:00 | B171: 3 | E171: 24
A172: 2017-08-06T05:25:00 | B172: 3 | E172: 25
A173: 2017-08-06T05:26:00 | B173: 3 | E173: 26
A174: 2017-08-06T05:27:00 | B174: 3 | E174: 27
A175: 2017-08-06T05:28:00 | B175: 3 | E175: 28
A176: 2017-08-06T05:29:00 | B176: 3 | E176: 29
A177: 2017-08-06T05:30:00 | B177: 3 | E177: 30
A178: 2017-08-06T05:31:00 | B178: 3 | E178: 31
A179: 2017-08-06T05:32:00 | B179: 3 | E179: 32
A180: 2017-08-06T05:33:00 | B180: 3 | E180: 33
A181: 2017-08-06T05:34:00 | B181: 3 | E181: 34
A182: 2017-08-06T05:35:00 | B182: 3 | E182: 35
A183: 2017-08-06T05:36:00 | B183: 3 | E183: 36
A184: 2017-08-06T05:37:00 | B184: 3 | E184: 37
A185: 2017-08-06T05:38:00 | B185: 3 | E185: 38
A186: 2017-08-06T05:39:00 | B186: 3 | E186: 39
A187: 2017-08-06T05:40:00 | B187: 2 | E187: 40
A188: 2017-08-06T05:41:00 | B188: 3 | E188: 41
A189: 2017-08-06T05:42:00 | B189: 3 | E189: 42
A190: 2017-08-06T05:43:00 | B190: 3 | E190: 43
A191: 2017-08-06T05:44:00 | B191: 3 | E191: 44
A192: 2017-08-06T05:45:00 | B192: 3 | E192: 45
A193: 2017-08-06T05:46:00 | B193: 3 | E193: 46
A194: 2017-08-06T05:47:00 | B194: 3 | E194: 47
A195: 2017-08-06T05:48:00 | B195: 3 | E195: 48
A196: 2017-08-06T05:49:00 | B196: 3 | E196: 49
A197: 2017-08-06T05:50:00 | B197: 3 | E197: 50
A198: 2017-08-06T05:51:00 | B198: 3 | E198: 51
A199: 2017-08-06T05:52:00 | B199: 3 | E199: 52
A200: 2017-08-06T05:53:00 | B200: 3 | E200: 53
A201: 2017-08-06T05:54:00 | B201: 3 | E201: 54
... 326 more rows
